[Event "*** Titled Tuesday Blitz"]
[Site "Chess.com"]
[Date "2020.02.04"]
[Round "7"]
[White "Chesstrainer1"]
[Black "Gentlejimmy7"]
[Result "1/2-1/2"]
[WhiteElo "2369"]
[BlackElo "2626"]
[TimeControl "180+2"]
[EndTime "14:35:49 PST"]
[Termination "Game drawn - insufficient material"]

1. Nf3 {[%clk 0:03:01.9]} 1... Nf6 {[%clk 0:02:59.8]} 2. c4 {[%clk 0:03:02.2]}
2... g6 {[%clk 0:02:56.8]} 3. Nc3 {[%clk 0:03:02.6]} 3... d5 {[%clk 0:02:58]} 4.
cxd5 {[%clk 0:03:02.4]} 4... Nxd5 {[%clk 0:02:59.9]} 5. Qb3 {[%clk 0:03:03.3]}
5... Nb6 {[%clk 0:02:58.7]} 6. d4 {[%clk 0:03:04.2]} 6... Bg7 {[%clk 0:02:58.9]}
7. Bf4 {[%clk 0:03:01]} 7... O-O {[%clk 0:02:58.2]} 8. Rd1 {[%clk 0:02:44.1]}
8... Bg4 {[%clk 0:02:29.1]} 9. Ne5 {[%clk 0:02:32.7]} 9... Be6 {[%clk
0:02:27.3]} 10. d5 {[%clk 0:02:33.2]} 10... Bc8 {[%clk 0:02:26.1]} 11. e4 {[%clk
0:02:30.5]} 11... N8d7 {[%clk 0:02:23.8]} 12. Nd3 {[%clk 0:02:20.7]} 12... a5
{[%clk 0:02:16.5]} 13. a4 {[%clk 0:02:16]} 13... c6 {[%clk 0:02:05.6]} 14. Be2
{[%clk 0:01:36.9]} 14... cxd5 {[%clk 0:02:04.3]} 15. exd5 {[%clk 0:01:38]} 15...
Nf6 {[%clk 0:01:39.4]} 16. Nc5 {[%clk 0:01:36.5]} 16... Nbd7 {[%clk 0:01:36.8]}
17. Nxb7 {[%clk 0:01:26.3]} 17... Qb6 {[%clk 0:01:34.3]} 18. Qxb6 {[%clk
0:01:24.5]} 18... Nxb6 {[%clk 0:01:36.2]} 19. Nc5 {[%clk 0:01:24.9]} 19... Bf5
{[%clk 0:01:25.3]} 20. f3 {[%clk 0:01:19.7]} 20... Rac8 {[%clk 0:01:23.4]} 21.
Nb7 {[%clk 0:01:08.9]} 21... Nc4 {[%clk 0:01:18.9]} 22. Bxc4 {[%clk 0:00:53.8]}
22... Rxc4 {[%clk 0:01:17.7]} 23. Be5 {[%clk 0:00:51]} 23... Bc2 {[%clk
0:01:09.3]} 24. Rd4 {[%clk 0:00:48.5]} 24... Rb4 {[%clk 0:01:03.6]} 25. Kd2
{[%clk 0:00:36.9]} 25... Rxb2 {[%clk 0:01:01.8]} 26. Nxa5 {[%clk 0:00:26.9]}
26... Bxa4+ {[%clk 0:00:56.4]} 27. Ke3 {[%clk 0:00:23.9]} 27... Bd7 {[%clk
0:00:54.7]} 28. Nc6 {[%clk 0:00:15]} 28... Bxc6 {[%clk 0:00:41.5]} 29. dxc6
{[%clk 0:00:16.9]} 29... Ng4+ {[%clk 0:00:42.7]} 30. Rxg4 {[%clk 0:00:15.5]}
30... Bxe5 {[%clk 0:00:44.2]} 31. Nd5 {[%clk 0:00:17.4]} 31... e6 {[%clk
0:00:42.5]} 32. Ne7+ {[%clk 0:00:18]} 32... Kg7 {[%clk 0:00:42.5]} 33. Rc4
{[%clk 0:00:15.5]} 33... Rfb8 {[%clk 0:00:36.4]} 34. Rd1 {[%clk 0:00:15]} 34...
Kf6 {[%clk 0:00:29.1]} 35. c7 {[%clk 0:00:14.9]} 35... Bxc7 {[%clk 0:00:30]} 36.
Rxc7 {[%clk 0:00:14.8]} 36... Rxg2 {[%clk 0:00:31.3]} 37. Rdd7 {[%clk
0:00:14.9]} 37... Rb3+ {[%clk 0:00:30.8]} 38. Ke4 {[%clk 0:00:14.5]} 38... Re2+
{[%clk 0:00:25.1]} 39. Kf4 {[%clk 0:00:12.6]} 39... g5+ {[%clk 0:00:26.3]} 40.
Kg3 {[%clk 0:00:13.4]} 40... Rbb2 {[%clk 0:00:23.3]} 41. Ng8+ {[%clk 0:00:13.3]}
41... Kg6 {[%clk 0:00:21.8]} 42. f4 {[%clk 0:00:11.9]} 42... Rg2+ {[%clk
0:00:21.8]} 43. Kf3 {[%clk 0:00:12.7]} 43... Rbf2+ {[%clk 0:00:22.4]} 44. Ke3
{[%clk 0:00:13.4]} 44... Rxf4 {[%clk 0:00:23.4]} 45. Ne7+ {[%clk 0:00:13]} 45...
Kg7 {[%clk 0:00:21.4]} 46. Nc6 {[%clk 0:00:12.6]} 46... Rxh2 {[%clk 0:00:21.7]}
47. Ne5 {[%clk 0:00:12.3]} 47... Rhf2 {[%clk 0:00:21.3]} 48. Nd3 {[%clk
0:00:11.4]} 48... R2f3+ {[%clk 0:00:20.6]} 49. Ke2 {[%clk 0:00:12.4]} 49... Rf5
{[%clk 0:00:20.9]} 50. Ne5 {[%clk 0:00:09.8]} 50... Rf2+ {[%clk 0:00:20.3]} 51.
Ke3 {[%clk 0:00:11]} 51... Rf1 {[%clk 0:00:20]} 52. Nd3 {[%clk 0:00:10.3]} 52...
h5 {[%clk 0:00:20.5]} 53. Rc8 {[%clk 0:00:10.6]} 53... h4 {[%clk 0:00:21.4]} 54.
Rdd8 {[%clk 0:00:11.4]} 54... Kf6 {[%clk 0:00:19.9]} 55. Rh8 {[%clk 0:00:11.9]}
55... Rg1 {[%clk 0:00:20.8]} 56. Rh6+ {[%clk 0:00:12]} 56... Kg7 {[%clk
0:00:20.6]} 57. Rch8 {[%clk 0:00:11.8]} 57... Rg3+ {[%clk 0:00:21.7]} 58. Ke2
{[%clk 0:00:11.8]} 58... Rg2+ {[%clk 0:00:22.6]} 59. Ke3 {[%clk 0:00:12.7]}
59... Rg3+ {[%clk 0:00:24]} 60. Ke2 {[%clk 0:00:13.7]} 60... Rd5 {[%clk
0:00:23.6]} 61. R8h7+ {[%clk 0:00:13.5]} 61... Kf8 {[%clk 0:00:24.2]} 62. Rf6
{[%clk 0:00:12.7]} 62... Rf5 {[%clk 0:00:23.8]} 63. Rhxf7+ {[%clk 0:00:12.6]}
63... Kg8 {[%clk 0:00:23.3]} 64. Rxf5 {[%clk 0:00:14.5]} 64... exf5 {[%clk
0:00:23.9]} 65. Rxf5 {[%clk 0:00:15.8]} 65... Kg7 {[%clk 0:00:25.4]} 66. Ne5
{[%clk 0:00:16.2]} 66... Kh6 {[%clk 0:00:24.8]} 67. Kf2 {[%clk 0:00:15.7]} 67...
Ra3 {[%clk 0:00:24.5]} 68. Rf6+ {[%clk 0:00:16.2]} 68... Kh5 {[%clk 0:00:24.7]}
69. Rf8 {[%clk 0:00:16.2]} 69... Ra2+ {[%clk 0:00:25.3]} 70. Kf3 {[%clk
0:00:16.2]} 70... Ra3+ {[%clk 0:00:26.5]} 71. Kf2 {[%clk 0:00:17.2]} 71... Ra2+
{[%clk 0:00:27.7]} 72. Kf3 {[%clk 0:00:18.4]} 72... g4+ {[%clk 0:00:29.1]} 73.
Nxg4 {[%clk 0:00:18.5]} 73... Ra3+ {[%clk 0:00:30.1]} 74. Ne3 {[%clk 0:00:19.5]}
74... Kg5 {[%clk 0:00:29.9]} 75. Rg8+ {[%clk 0:00:20]} 75... Kf6 {[%clk
0:00:30.5]} 76. Rh8 {[%clk 0:00:20.7]} 76... Ra4 {[%clk 0:00:29.3]} 77. Rh6+
{[%clk 0:00:20.2]} 77... Kg5 {[%clk 0:00:30.3]} 78. Rb6 {[%clk 0:00:20.3]} 78...
Rf4+ {[%clk 0:00:31.5]} 79. Kg2 {[%clk 0:00:20.4]} 79... Ra4 {[%clk 0:00:33.4]}
80. Rb5+ {[%clk 0:00:20.2]} 80... Kf4 {[%clk 0:00:34.4]} 81. Nd5+ {[%clk
0:00:20.5]} 81... Kg4 {[%clk 0:00:35.3]} 82. Nf6+ {[%clk 0:00:20.9]} 82... Kf4
{[%clk 0:00:36.6]} 83. Nh5+ {[%clk 0:00:20.2]} 83... Kg4 {[%clk 0:00:37]} 84.
Nf6+ {[%clk 0:00:20.9]} 84... Kf4 {[%clk 0:00:37.9]} 85. Rh5 {[%clk 0:00:20.8]}
85... Ra2+ {[%clk 0:00:35.2]} 86. Kh3 {[%clk 0:00:21.2]} 86... Ra3+ {[%clk
0:00:36.3]} 87. Kxh4 {[%clk 0:00:17.9]} 87... Ra1 {[%clk 0:00:37.8]} 88. Kh3
{[%clk 0:00:17.4]} 88... Rh1+ {[%clk 0:00:37.5]} 89. Kg2 {[%clk 0:00:18.3]}
89... Rxh5 {[%clk 0:00:39.4]} 90. Nxh5+ {[%clk 0:00:19.3]} 1/2-1/2

[Event "*** Titled Tuesday Blitz"]
[Site "Chess.com"]
[Date "2020.02.04"]
[Round "7"]
[White "MarcoRiehle"]
[Black "SCIM"]
[Result "0-1"]
[WhiteElo "2626"]
[BlackElo "2481"]
[TimeControl "180+2"]
[EndTime "14:35:51 PST"]
[Termination "SCIM won by resignation"]

1. d4 {[%clk 0:03:01.9]} 1... Nf6 {[%clk 0:02:57.4]} 2. Nf3 {[%clk 0:03:02.2]}
2... g6 {[%clk 0:02:58.2]} 3. Nbd2 {[%clk 0:03:01.1]} 3... d5 {[%clk 0:02:57.3]}
4. b4 {[%clk 0:03:01.6]} 4... Bg7 {[%clk 0:02:58.1]} 5. c4 {[%clk 0:02:58.9]}
5... O-O {[%clk 0:03:00]} 6. e3 {[%clk 0:02:58.1]} 6... a5 {[%clk 0:02:59.8]} 7.
b5 {[%clk 0:02:57.3]} 7... dxc4 {[%clk 0:02:55.7]} 8. Bxc4 {[%clk 0:02:55.9]}
8... c6 {[%clk 0:02:56]} 9. O-O {[%clk 0:02:55]} 9... cxb5 {[%clk 0:02:49.6]}
10. Bxb5 {[%clk 0:02:53.7]} 10... Nc6 {[%clk 0:02:51.5]} 11. Nc4 {[%clk
0:02:42.4]} 11... Na7 {[%clk 0:02:46.7]} 12. a4 {[%clk 0:02:35.5]} 12... Nxb5
{[%clk 0:02:47.1]} 13. axb5 {[%clk 0:02:37.4]} 13... Be6 {[%clk 0:02:46.3]} 14.
Nce5 {[%clk 0:02:30.9]} 14... Nd5 {[%clk 0:02:41.4]} 15. Ba3 {[%clk 0:02:19.8]}
15... Rc8 {[%clk 0:02:36.9]} 16. Rc1 {[%clk 0:02:11.2]} 16... f6 {[%clk
0:02:26.9]} 17. Nd3 {[%clk 0:02:06.6]} 17... Nc3 {[%clk 0:02:01.3]} 18. Qd2
{[%clk 0:01:47]} 18... Nxb5 {[%clk 0:01:59]} 19. Nc5 {[%clk 0:01:48.5]} 19...
Bd5 {[%clk 0:01:56]} 20. Bb2 {[%clk 0:01:34.6]} 20... b6 {[%clk 0:01:48.7]} 21.
Na4 {[%clk 0:01:23.2]} 21... Rxc1 {[%clk 0:01:23.1]} 22. Rxc1 {[%clk 0:01:20.1]}
22... Nd6 {[%clk 0:01:22.1]} 23. Qd3 {[%clk 0:01:01.5]} 23... Bxf3 {[%clk
0:01:03.1]} 24. gxf3 {[%clk 0:01:03.4]} 24... Kh8 {[%clk 0:00:54.8]} 25. e4
{[%clk 0:00:54.6]} 25... Nf7 {[%clk 0:00:51.9]} 26. d5 {[%clk 0:00:51]} 26...
Bh6 {[%clk 0:00:50.4]} 27. Rc6 {[%clk 0:00:46.7]} 27... Qb8 {[%clk 0:00:42.5]}
28. Nxb6 {[%clk 0:00:44.1]} 28... Ng5 {[%clk 0:00:38.7]} 29. Kg2 {[%clk
0:00:27]} 29... Qf4 {[%clk 0:00:31.9]} 30. Bc1 {[%clk 0:00:26.5]} 30... Qh4
{[%clk 0:00:32.4]} 31. Bxg5 {[%clk 0:00:24.4]} 31... Qxg5+ {[%clk 0:00:34.3]}
32. Kf1 {[%clk 0:00:20.8]} 32... Qf4 {[%clk 0:00:32.2]} 33. d6 {[%clk
0:00:17.1]} 33... exd6 {[%clk 0:00:28.4]} 34. Rxd6 {[%clk 0:00:18.3]} 34... Qxh2
{[%clk 0:00:20.4]} 35. Nd7 {[%clk 0:00:17.9]} 35... Rd8 {[%clk 0:00:17.2]} 36.
e5 {[%clk 0:00:17]} 36... Qh1+ {[%clk 0:00:14.4]} 37. Ke2 {[%clk 0:00:16.9]}
37... Qa1 {[%clk 0:00:11.8]} 38. e6 {[%clk 0:00:11.9]} 38... Re8 {[%clk
0:00:11.3]} 39. f4 {[%clk 0:00:07]} 39... Rxe6+ {[%clk 0:00:07.9]} 40. Rxe6
{[%clk 0:00:07.5]} 40... Qa2+ {[%clk 0:00:09.4]} 41. Kf3 {[%clk 0:00:08]} 41...
Qxe6 {[%clk 0:00:10.6]} 42. Qd4 {[%clk 0:00:07.5]} 42... Qh3+ {[%clk 0:00:09.7]}
43. Ke2 {[%clk 0:00:07.7]} 43... Qe6+ {[%clk 0:00:11.6]} 44. Kf3 {[%clk
0:00:09.2]} 44... Bg7 {[%clk 0:00:11.9]} 45. Qa7 {[%clk 0:00:08.8]} 45... Qh3+
{[%clk 0:00:11.5]} 46. Ke2 {[%clk 0:00:09]} 46... Qe6+ {[%clk 0:00:13.4]} 47.
Kf3 {[%clk 0:00:10.3]} 47... h5 {[%clk 0:00:14.1]} 48. Qb7 {[%clk 0:00:11.2]}
48... Qh3+ {[%clk 0:00:13.2]} 49. Ke2 {[%clk 0:00:11.8]} 49... Qe6+ {[%clk
0:00:14.5]} 50. Kf3 {[%clk 0:00:13.2]} 50... Qg4+ {[%clk 0:00:15]} 51. Ke3
{[%clk 0:00:13.9]} 51... a4 {[%clk 0:00:15.8]} 52. Nc5 {[%clk 0:00:12.6]} 52...
Qh3+ {[%clk 0:00:15.5]} 53. f3 {[%clk 0:00:13]} 53... Qf5 {[%clk 0:00:14.7]} 54.
Ne4 {[%clk 0:00:11.8]} 54... Qe6 {[%clk 0:00:12.3]} 55. Kf2 {[%clk 0:00:10.4]}
55... Qa2+ {[%clk 0:00:10.2]} 56. Kg3 {[%clk 0:00:11.4]} 56... h4+ {[%clk
0:00:11.5]} 57. Kh3 {[%clk 0:00:12.2]} 57... Qe2 {[%clk 0:00:11.7]} 58. Nd6
{[%clk 0:00:10.8]} 58... Qf1+ {[%clk 0:00:11.1]} 59. Kxh4 {[%clk 0:00:11.9]}
59... Qh1+ {[%clk 0:00:12]} 60. Kg4 {[%clk 0:00:13.3]} 60... Qg1+ {[%clk
0:00:12.9]} 61. Kh4 {[%clk 0:00:14.4]} 61... Kh7 {[%clk 0:00:14]} 62. f5 {[%clk
0:00:12.5]} 62... Qh2+ {[%clk 0:00:13.9]} 63. Kg4 {[%clk 0:00:13.1]} 63... Qg2+
{[%clk 0:00:14.5]} 64. Kf4 {[%clk 0:00:12.8]} 64... Qh2+ {[%clk 0:00:15.3]} 65.
Kg4 {[%clk 0:00:13.3]} 65... Qxd6 {[%clk 0:00:13.9]} 66. fxg6+ {[%clk
0:00:14.8]} 66... Kxg6 {[%clk 0:00:12.4]} 67. Qe4+ {[%clk 0:00:15.9]} 67... Kh6
{[%clk 0:00:12.6]} 68. Qxa4 {[%clk 0:00:16.5]} 68... Qe6+ {[%clk 0:00:13.4]} 69.
Kh4 {[%clk 0:00:16.4]} 69... Qf5 {[%clk 0:00:13]} 70. Kg3 {[%clk 0:00:14.5]}
70... Qg5+ {[%clk 0:00:13.7]} 71. Kh3 {[%clk 0:00:15]} 71... Qh5+ {[%clk
0:00:14.5]} 72. Kg3 {[%clk 0:00:16.1]} 72... Qg5+ {[%clk 0:00:16]} 73. Kh3
{[%clk 0:00:17.2]} 73... f5 {[%clk 0:00:17.7]} 74. Qc6+ {[%clk 0:00:16.7]} 74...
Bf6 {[%clk 0:00:18.4]} 75. Qc8 {[%clk 0:00:14.3]} 75... Qh4+ {[%clk 0:00:17.5]}
76. Kg2 {[%clk 0:00:15.4]} 76... Qg5+ {[%clk 0:00:18.7]} 77. Kh3 {[%clk
0:00:16.5]} 77... Qg6 {[%clk 0:00:20.1]} 78. Qf8+ {[%clk 0:00:16.3]} 78... Bg7
{[%clk 0:00:20.5]} 79. Qc8 {[%clk 0:00:17.3]} 79... Qh5+ {[%clk 0:00:21.1]} 80.
Kg2 {[%clk 0:00:18.3]} 80... Qg5+ {[%clk 0:00:22.2]} 81. Kh3 {[%clk 0:00:18.7]}
81... f4 {[%clk 0:00:23.7]} 82. Qe6+ {[%clk 0:00:16.4]} 82... Qg6 {[%clk
0:00:22.1]} 83. Kh4 {[%clk 0:00:09.1]} 83... Bf6+ {[%clk 0:00:20.4]} 0-1

[Event "*** Titled Tuesday Blitz"]
[Site "Chess.com"]
[Date "2020.02.04"]
[Round "7"]
[White "heyiampotato"]
[Black "volcanoexplorer"]
[Result "1/2-1/2"]
[WhiteElo "2459"]
[BlackElo "2602"]
[TimeControl "180+2"]
[EndTime "14:36:10 PST"]
[Termination "Game drawn by repetition"]

1. d4 {[%clk 0:03:01.9]} 1... Nf6 {[%clk 0:02:59.5]} 2. Nf3 {[%clk 0:03:01.7]}
2... e6 {[%clk 0:03:00.7]} 3. c4 {[%clk 0:03:02.7]} 3... b6 {[%clk 0:03:02.3]}
4. a3 {[%clk 0:03:03.4]} 4... Ba6 {[%clk 0:03:03.2]} 5. Qc2 {[%clk 0:03:03.7]}
5... Be7 {[%clk 0:03:03.8]} 6. e4 {[%clk 0:02:59]} 6... d5 {[%clk 0:02:54.7]} 7.
e5 {[%clk 0:02:54.6]} 7... Nfd7 {[%clk 0:02:13.6]} 8. cxd5 {[%clk 0:02:45.7]}
8... Bxf1 {[%clk 0:02:13.7]} 9. Kxf1 {[%clk 0:02:12.9]} 9... exd5 {[%clk
0:02:14.9]} 10. Nc3 {[%clk 0:02:11.3]} 10... Nf8 {[%clk 0:02:06.3]} 11. g3
{[%clk 0:02:05.1]} 11... Ne6 {[%clk 0:02:05.3]} 12. Kg2 {[%clk 0:02:05.2]} 12...
O-O {[%clk 0:02:06.3]} 13. Be3 {[%clk 0:02:00.6]} 13... Qd7 {[%clk 0:01:58.4]}
14. Rad1 {[%clk 0:01:59.6]} 14... c6 {[%clk 0:01:51.5]} 15. h4 {[%clk
0:02:00.2]} 15... f6 {[%clk 0:01:46.4]} 16. exf6 {[%clk 0:01:23.1]} 16... Bxf6
{[%clk 0:01:48.3]} 17. Ng5 {[%clk 0:01:22.8]} 17... Bxg5 {[%clk 0:01:13.4]} 18.
hxg5 {[%clk 0:01:23.6]} 18... g6 {[%clk 0:01:13.7]} 19. Rh6 {[%clk 0:01:22.7]}
19... Rf5 {[%clk 0:01:06.7]} 20. Rdh1 {[%clk 0:01:16.3]} 20... Nf8 {[%clk
0:01:07.5]} 21. Bf4 {[%clk 0:01:03.2]} 21... Qf7 {[%clk 0:00:58.6]} 22. Nd1
{[%clk 0:00:58.4]} 22... Qd7 {[%clk 0:00:23.9]} 23. Ne3 {[%clk 0:00:56.7]} 23...
Rf7 {[%clk 0:00:25.1]} 24. R1h4 {[%clk 0:00:55.9]} 24... Ne6 {[%clk 0:00:23.2]}
25. Be5 {[%clk 0:00:42.8]} 25... Nf8 {[%clk 0:00:04.3]} 26. Ng4 {[%clk
0:00:36.7]} 26... Qf5 {[%clk 0:00:05.6]} 27. Qxf5 {[%clk 0:00:21.3]} 27... Rxf5
{[%clk 0:00:07.5]} 28. Nf6+ {[%clk 0:00:22.5]} 28... Kf7 {[%clk 0:00:09.1]} 29.
Nxh7 {[%clk 0:00:19.6]} 29... Nbd7 {[%clk 0:00:10.5]} 30. g4 {[%clk 0:00:16.5]}
30... Rxe5 {[%clk 0:00:06.7]} 31. dxe5 {[%clk 0:00:17.5]} 31... Nxe5 {[%clk
0:00:08.6]} 32. Nxf8 {[%clk 0:00:17.6]} 32... Rxf8 {[%clk 0:00:10.5]} 33. f4
{[%clk 0:00:17.2]} 33... Nd3 {[%clk 0:00:10.4]} 34. Kf3 {[%clk 0:00:17.3]} 34...
Ke7 {[%clk 0:00:08.6]} 35. Rh7+ {[%clk 0:00:09]} 35... Kd6 {[%clk 0:00:09.7]}
36. f5 {[%clk 0:00:07]} 36... gxf5 {[%clk 0:00:11]} 37. R4h6+ {[%clk 0:00:08.2]}
37... Kc5 {[%clk 0:00:12.2]} 38. Rf6 {[%clk 0:00:08.3]} 38... fxg4+ {[%clk
0:00:10.8]} 39. Kxg4 {[%clk 0:00:10.2]} 39... Re8 {[%clk 0:00:11.8]} 40. Rc7
{[%clk 0:00:09.3]} 40... Kd4 {[%clk 0:00:12.3]} 41. g6 {[%clk 0:00:10]} 41... c5
{[%clk 0:00:10.2]} 42. g7 {[%clk 0:00:10.6]} 42... Ne5+ {[%clk 0:00:11]} 43. Kf5
{[%clk 0:00:09.9]} 43... Rg8 {[%clk 0:00:02.9]} 44. Rf8 {[%clk 0:00:09.7]} 44...
Rxg7 {[%clk 0:00:04.5]} 45. Rxg7 {[%clk 0:00:11.2]} 45... Nd3 {[%clk 0:00:06.2]}
46. Rxa7 {[%clk 0:00:10.8]} 46... Nxb2 {[%clk 0:00:07.4]} 47. Rd8 {[%clk
0:00:10]} 47... Nc4 {[%clk 0:00:09.3]} 48. Rad7 {[%clk 0:00:09.8]} 48... Ne3+
{[%clk 0:00:10.7]} 49. Kf4 {[%clk 0:00:11.3]} 49... Ng2+ {[%clk 0:00:09.8]} 50.
Kf3 {[%clk 0:00:12.1]} 50... Ne3 {[%clk 0:00:11.3]} 51. Re8 {[%clk 0:00:10.9]}
51... Nc2 {[%clk 0:00:11.7]} 52. Rd6 {[%clk 0:00:08.9]} 52... Kc4 {[%clk
0:00:10.4]} 53. Rxb6 {[%clk 0:00:08.9]} 53... Nxa3 {[%clk 0:00:11.3]} 54. Re3
{[%clk 0:00:07]} 54... Nc2 {[%clk 0:00:11.5]} 55. Re8 {[%clk 0:00:05.3]} 55...
d4 {[%clk 0:00:12.7]} 56. Rc6 {[%clk 0:00:05.5]} 56... Nb4 {[%clk 0:00:13.7]}
57. Rcc8 {[%clk 0:00:06.2]} 57... Nd3 {[%clk 0:00:11.9]} 58. Ke2 {[%clk
0:00:05.9]} 58... Kc3 {[%clk 0:00:12.9]} 59. Kd1 {[%clk 0:00:06.5]} 59... c4
{[%clk 0:00:13.8]} 60. Re7 {[%clk 0:00:06.3]} 60... Nb2+ {[%clk 0:00:13]} 61.
Kc1 {[%clk 0:00:05.3]} 61... d3 {[%clk 0:00:14.2]} 62. Rd7 {[%clk 0:00:06.4]}
62... Na4 {[%clk 0:00:08.9]} 63. Ra8 {[%clk 0:00:04.2]} 63... Nb6 {[%clk
0:00:09.9]} 64. Ra3+ {[%clk 0:00:05]} 64... Kb4 {[%clk 0:00:10.9]} 65. Rb7
{[%clk 0:00:04.3]} 65... Kxa3 {[%clk 0:00:05.4]} 66. Rxb6 {[%clk 0:00:05.3]}
66... c3 {[%clk 0:00:07.3]} 67. Rc6 {[%clk 0:00:06.1]} 67... Kb4 {[%clk
0:00:08.3]} 68. Rc8 {[%clk 0:00:05.7]} 68... Kb3 {[%clk 0:00:09.6]} 69. Rb8+
{[%clk 0:00:07]} 69... Kc4 {[%clk 0:00:10.6]} 70. Rc8+ {[%clk 0:00:08.2]} 70...
Kd4 {[%clk 0:00:12.1]} 71. Rd8+ {[%clk 0:00:09.6]} 71... Ke3 {[%clk 0:00:12.7]}
72. Re8+ {[%clk 0:00:09.6]} 72... Kd4 {[%clk 0:00:13.3]} 73. Rd8+ {[%clk
0:00:10.8]} 73... Kc4 {[%clk 0:00:13.8]} 74. Rc8+ {[%clk 0:00:11.9]} 74... Kb3
{[%clk 0:00:15.4]} 75. Rb8+ {[%clk 0:00:10.8]} 75... Kc4 {[%clk 0:00:15]} 76.
Kd1 {[%clk 0:00:09.4]} 76... Kd4 {[%clk 0:00:15.2]} 77. Rb4+ {[%clk 0:00:07.4]}
77... Kc5 {[%clk 0:00:11.4]} 78. Rh4 {[%clk 0:00:07.7]} 78... Kd5 {[%clk
0:00:13]} 79. Ke1 {[%clk 0:00:07.2]} 79... Kc5 {[%clk 0:00:14]} 80. Rg4 {[%clk
0:00:06.2]} 80... Kd5 {[%clk 0:00:15.2]} 81. Rh4 {[%clk 0:00:07]} 81... Kc5
{[%clk 0:00:16.6]} 82. Rf4 {[%clk 0:00:08.3]} 82... Kd5 {[%clk 0:00:17.9]} 83.
Rh4 {[%clk 0:00:08.9]} 1/2-1/2

[Event "*** Titled Tuesday Blitz"]
[Site "Chess.com"]
[Date "2020.02.04"]
[Round "8"]
[White "ruvat"]
[Black "LogoCzar"]
[Result "1/2-1/2"]
[WhiteElo "2400"]
[BlackElo "2499"]
[TimeControl "180+2"]
[EndTime "14:48:02 PST"]
[Termination "Game drawn by agreement"]

1. d4 {[%clk 0:03:01.9]} 1... d5 {[%clk 0:03:00.4]} 2. c4 {[%clk 0:03:02.6]}
2... c6 {[%clk 0:03:01.4]} 3. Nf3 {[%clk 0:03:03.5]} 3... Nf6 {[%clk 0:03:02.7]}
4. Qc2 {[%clk 0:03:04.5]} 4... g6 {[%clk 0:03:03.2]} 5. Bf4 {[%clk 0:03:04.3]}
5... Bg7 {[%clk 0:03:04.3]} 6. e3 {[%clk 0:03:05.3]} 6... O-O {[%clk 0:03:05.6]}
7. Nc3 {[%clk 0:03:06.4]} 7... c5 {[%clk 0:03:07]} 8. dxc5 {[%clk 0:03:02]} 8...
Qa5 {[%clk 0:03:07.2]} 9. Be5 {[%clk 0:02:42.8]} 9... dxc4 {[%clk 0:02:59.5]}
10. Bxc4 {[%clk 0:02:38.6]} 10... Nc6 {[%clk 0:02:59]} 11. Bxf6 {[%clk
0:02:22.4]} 11... Bxf6 {[%clk 0:02:59.7]} 12. O-O {[%clk 0:02:21.3]} 12... Bxc3
{[%clk 0:02:57]} 13. Qxc3 {[%clk 0:02:20.3]} 13... Qxc3 {[%clk 0:02:57.5]} 14.
bxc3 {[%clk 0:02:22.2]} 14... Na5 {[%clk 0:02:47.7]} 15. Bb3 {[%clk 0:02:07.5]}
15... Bd7 {[%clk 0:02:44.1]} 16. Ne5 {[%clk 0:02:02.5]} 16... Bc6 {[%clk
0:02:35.2]} 17. Rfd1 {[%clk 0:01:53.5]} 17... Rac8 {[%clk 0:02:24.9]} 1/2-1/2

[Event "*** Titled Tuesday Blitz"]
[Site "Chess.com"]
[Date "2020.02.04"]
[Round "8"]
[White "vellottiwizard"]
[Black "vugarrasulov"]
[Result "0-1"]
[WhiteElo "2685"]
[BlackElo "2908"]
[TimeControl "180+2"]
[EndTime "14:48:53 PST"]
[Termination "vugarrasulov won by resignation"]

1. e4 {[%clk 0:03:01.9]} 1... c5 {[%clk 0:03:00.4]} 2. Nf3 {[%clk 0:03:01.1]}
2... d6 {[%clk 0:03:01.4]} 3. d4 {[%clk 0:03:02.1]} 3... cxd4 {[%clk 0:03:03.3]}
4. Nxd4 {[%clk 0:03:04]} 4... Nf6 {[%clk 0:03:04.6]} 5. Nc3 {[%clk 0:03:05.7]}
5... a6 {[%clk 0:03:06]} 6. Be3 {[%clk 0:03:07.3]} 6... e5 {[%clk 0:03:06.4]} 7.
Nb3 {[%clk 0:03:08.8]} 7... Be7 {[%clk 0:03:07.6]} 8. f4 {[%clk 0:03:08.8]} 8...
O-O {[%clk 0:03:06.3]} 9. Be2 {[%clk 0:03:09.4]} 9... b5 {[%clk 0:03:04.5]} 10.
O-O {[%clk 0:03:07.6]} 10... Bb7 {[%clk 0:03:05.1]} 11. a4 {[%clk 0:03:05.9]}
11... Nxe4 {[%clk 0:02:50]} 12. Nxe4 {[%clk 0:03:05.5]} 12... Bxe4 {[%clk
0:02:51.9]} 13. axb5 {[%clk 0:03:06.1]} 13... axb5 {[%clk 0:02:53.8]} 14. Rxa8
{[%clk 0:03:06.7]} 14... Bxa8 {[%clk 0:02:55.7]} 15. fxe5 {[%clk 0:03:04.1]}
15... dxe5 {[%clk 0:02:50.9]} 16. Qxd8 {[%clk 0:03:04.6]} 16... Rxd8 {[%clk
0:02:52.8]} 17. Bxb5 {[%clk 0:03:06.4]} 17... Nd7 {[%clk 0:02:50.8]} 18. Rd1
{[%clk 0:03:04.2]} 18... Nf6 {[%clk 0:02:49.7]} 19. Rxd8+ {[%clk 0:03:05.6]}
19... Bxd8 {[%clk 0:02:51.6]} 20. Nd2 {[%clk 0:02:53.1]} 20... Nd5 {[%clk
0:02:39.9]} 21. Ba7 {[%clk 0:02:53]} 21... f5 {[%clk 0:02:31.8]} 22. c4 {[%clk
0:02:29.2]} 22... Nf4 {[%clk 0:02:32.4]} 23. Bb8 {[%clk 0:02:29.3]} 23... Bb6+
{[%clk 0:02:31.4]} 24. Kf1 {[%clk 0:02:27.8]} 24... Bxg2+ {[%clk 0:02:30.8]} 25.
Ke1 {[%clk 0:02:29.1]} 25... Kf7 {[%clk 0:02:24.3]} 26. Kd1 {[%clk 0:02:26.3]}
26... Ke6 {[%clk 0:02:23.1]} 27. b4 {[%clk 0:02:24.7]} 27... Bd4 {[%clk
0:02:18.5]} 28. c5 {[%clk 0:02:23.9]} 28... Nd5 {[%clk 0:02:14.8]} 29. Bc4
{[%clk 0:02:22.1]} 29... Kd7 {[%clk 0:02:14.5]} 30. Nb3 {[%clk 0:02:02.4]} 30...
Ne3+ {[%clk 0:02:14.4]} 0-1

[Event "*** Titled Tuesday Blitz"]
[Site "Chess.com"]
[Date "2020.02.04"]
[Round "8"]
[White "quesfr"]
[Black "SerGo055"]
[Result "0-1"]
[WhiteElo "2085"]
[BlackElo "2554"]
[TimeControl "180+2"]
[EndTime "14:49:47 PST"]
[Termination "SerGo055 won by checkmate"]

1. e4 {[%clk 0:03:01.9]} 1... d5 {[%clk 0:03:00.1]} 2. exd5 {[%clk 0:03:01.1]}
2... Qxd5 {[%clk 0:03:02]} 3. Nf3 {[%clk 0:03:01.6]} 3... Nf6 {[%clk 0:03:02.9]}
4. d4 {[%clk 0:03:00.2]} 4... Bg4 {[%clk 0:03:03]} 5. Be2 {[%clk 0:02:59.5]}
5... Nc6 {[%clk 0:03:04.1]} 6. O-O {[%clk 0:02:54.1]} 6... O-O-O {[%clk
0:03:04.2]} 7. c4 {[%clk 0:02:54.5]} 7... Qh5 {[%clk 0:02:52.3]} 8. Be3 {[%clk
0:02:33.1]} 8... e5 {[%clk 0:02:51.1]} 9. d5 {[%clk 0:02:29.8]} 9... e4 {[%clk
0:02:52.1]} 10. Nd4 {[%clk 0:01:34.1]} 10... Nxd4 {[%clk 0:02:49]} 11. Bxg4+
{[%clk 0:01:35]} 11... Nxg4 {[%clk 0:02:50.9]} 12. h3 {[%clk 0:01:36.1]} 12...
Nf3+ {[%clk 0:02:52.1]} 13. gxf3 {[%clk 0:01:31.3]} 13... Ne5 {[%clk 0:02:53.4]}
14. fxe4 {[%clk 0:01:18.3]} 14... Qxh3 {[%clk 0:02:52.4]} 15. f3 {[%clk
0:01:13.3]} 15... Rd6 {[%clk 0:02:30.2]} 16. Kf2 {[%clk 0:01:00.9]} 16... Rf6
{[%clk 0:01:54.8]} 17. Nd2 {[%clk 0:00:49.5]} 17... Qh2+ {[%clk 0:01:41]} 18.
Ke1 {[%clk 0:00:48]} 18... Nd3# {[%clk 0:01:42.9]} 0-1